fUSD/lending_fUSD_20260316
["ID","MTS","AMOUNT","RATE_DAILY","PERIOD"]
[408439125,1773627033519,-500.0,0.00018284,2]
[408439126,1773627033729,-500.0,0.00018284,2]
[408439127,1773627033740,-500.0,0.00018284,2]
[408439128,1773627033749,-519.11389951,0.00018284,2]
[408439129,1773627033760,-504.72470165,0.00018284,2]
[408439130,1773627033770,-520.40818183,0.00018284,2]
[408439131,1773627033780,-500.0,0.00018284,2]
[408439132,1773627033789,-500.0,0.00018284,2]
[408439133,1773627033799,-8344.0642356,0.00018284,2]
[408439134,1773627033808,-232.331277,0.00018284,2]
[408439135,1773627033817,-232.331277,0.00018284,2]
[408439136,1773627033827,-232.331277,0.00018284,2]
[408439137,1773627033837,-232.331277,0.00018284,2]
[408439138,1773627033846,-151.0,0.00018284,2]
[408439139,1773627033855,-151.0,0.00018284,2]
[408439140,1773627033864,-151.0,0.00018284,2]
[408439141,1773627033878,-200.0,0.00018285,2]
[408439142,1773627033887,-1308.0,0.00018288,2]
[408439143,1773627033896,-168.0,0.0001829,2]
[408439144,1773627033906,-587.08981475,0.00018321,2]
[408439145,1773627033915,-1000.0,0.00018321,2]
[408439146,1773627033925,-418.0,0.00018339,2]
[408439147,1773627033935,-1308.0,0.00018339,2]
[408439148,1773627033944,-3741.05159045,0.0001835,2]
[408439149,1773627033953,-517.37272007,0.00018393,2]
[408439150,1773627033963,-418.0,0.00018394,2]
[408439151,1773627033973,-1308.0,0.00018409,2]
[408439152,1773627033982,-4494.36229169,0.0001841,2]
[408439153,1773627033991,-168.0,0.00018417,2]
[408439154,1773627034000,-1308.0,0.00018417,2]
[408439155,1773627034011,-418.0,0.00018448,2]
[408439156,1773627034020,-1678.73084,0.00018467,2]
[408439157,1773627034029,-253.47285441,0.00018467,2]
[408439162,1773627038216,-2417.6858017,0.00018326,2]
[408439163,1773627038227,-507.50732285,0.00018393,2]
[408439164,1773627038237,-1425.25799559,0.00018467,2]
[408439165,1773627038248,-200.0,0.00018468,2]
[408439166,1773627038259,-500.0,0.00018472,2]
[408439167,1773627038270,-616.87225382,0.00018472,2]
[408439168,1773627038280,-1003.73,0.00018473,2]
[408439169,1773627038290,-151.0,0.00018493,2]
[408439170,1773627038300,-151.0,0.00018493,2]
[408439171,1773627038310,-1909.31441896,0.000185,2]
[408439172,1773627038320,-761.55080715,0.000185,2]
[408439173,1773627038330,-761.55080714,0.000185,2]
[408439174,1773627038339,-761.55080714,0.000185,2]
[408439175,1773627038350,-761.55080714,0.000185,2]
[408439176,1773627038361,-418.0,0.00018503,2]
[408439177,1773627038370,-502.09965026,0.00018521,2]
[408439178,1773627038380,-505.34039603,0.00018521,2]
[408439179,1773627038390,-878.62,0.00018521,2]
[408439180,1773627038399,-587.0,0.00018546,2]
[408439181,1773627038409,-418.0,0.00018558,2]
[408439182,1773627038418,-3150.25770318,0.00018571,2]
[408439183,1773627038434,-590.79388727,0.00018571,2]
[408439184,1773627038444,-698.21102355,0.0001858,2]
[408439185,1773627038479,-1041.96897645,0.0001858,2]
[408439186,1773627038488,-500.0,0.000186,2]
[408439187,1773627038498,-63.03102355,0.000186,2]
[408439192,1773627040373,-151.0,0.00018086,2]
[408439193,1773627040383,-151.0,0.00018284,2]
[408439194,1773627040392,-151.0,0.00018493,2]
[408439195,1773627040402,-151.0,0.00018493,2]
[408439196,1773627040412,-151.0,0.00018493,2]
[408439197,1773627040423,-89.88435911,0.00018493,2]
[408439198,1773627040435,-61.11564089,0.00018493,2]
[408439199,1773627040444,-744.02022734,0.000186,2]
[408439200,1773627040453,-500.0,0.000186,2]
[408439201,1773627040462,-604.89012783,0.000186,2]
[408439202,1773627040471,-455.24900394,0.000186,2]
[408439203,1773627040483,-44.75099606,0.000186,2]
[408439204,1773627040493,-626.26224761,0.000186,2]
[408439205,1773627040502,-151.0,0.000186,2]
[408439206,1773627040512,-151.0,0.000186,2]
[408439207,1773627040521,-151.0,0.000186,2]
[408439208,1773627040532,-418.0,0.00018613,2]
[408439209,1773627040542,-782.67,0.00018615,2]
[408439210,1773627040551,-186.31675633,0.00018639,2]
[408439211,1773627040563,-103.73774467,0.00018639,2]
[408439212,1773627040572,-200.0,0.00018653,2]
[408439213,1773627040583,-418.0,0.00018668,2]
[408439214,1773627040592,-1122.35225533,0.000187,2]
[408439215,1773627040608,-877.64774467,0.000187,2]
[408439216,1773627040618,-2000.0,0.000187,2]
[408439217,1773627040627,-2351.0,0.000187,2]
[408439218,1773627040637,-675.58,0.00018715,2]
[408439219,1773627040646,-418.0,0.00018722,2]
[408439220,1773627040655,-418.0,0.00018777,2]
[408439221,1773627040664,-3242.0,0.00018782,5]
[408439222,1773627040673,-232.331277,0.00018782,2]
[408439223,1773627040683,-232.331277,0.00018782,2]
[408439224,1773627040693,-232.331277,0.00018782,2]
[408439225,1773627040702,-232.331277,0.00018782,2]
[408439226,1773627040712,-151.0,0.00018782,2]
[408439227,1773627040722,-151.0,0.00018782,2]
[408439228,1773627040731,-151.0,0.00018782,2]
[408439229,1773627040741,-3741.05159045,0.00018793,2]
[408439230,1773627040750,-911.9,0.00018795,2]
[408439231,1773627040761,-902.20202048,0.00018796,2]
[408439232,1773627040770,-2000.0,0.000188,2]
[408439233,1773627040780,-418.0,0.00018832,2]
[408439234,1773627040789,-1002.0121065,0.00018868,2]
[408439235,1773627040799,-157.0,0.00018869,3]
[408439236,1773627040809,-418.0,0.00018887,2]
[408439237,1773627040818,-782.67,0.00018889,2]
[408439238,1773627040828,-151.0,0.000189,2]
[408439239,1773627040837,-418.0,0.00018942,2]
[408439240,1773627040848,-150.0,0.00018965,2]
[408439241,1773627040858,-151.0,0.00018967,2]
[408439242,1773627040867,-151.0,0.00018967,2]
[408439243,1773627040877,-418.0,0.00018996,2]
[408439244,1773627040888,-4190.0,0.00019,2]
[408439245,1773627040898,-457.09707525,0.00019,2]
[408439247,1773627040908,-1740.18,0.00019012,2]
[408439249,1773627040917,-3741.05159045,0.00019014,2]
[408439251,1773627040927,-418.0,0.00019051,2]
[408439252,1773627040936,-501.62039659,0.0001908,2]
[408439254,1773627040946,-503.16953295,0.00019089,2]
[408439256,1773627040956,-502.1415965,0.00019089,2]
[408439258,1773627040966,-501.16856135,0.00019089,2]
[408439261,1773627040977,-500.0,0.00019089,2]
[408439262,1773627040987,-501.9174748,0.00019089,2]
[408439263,1773627040996,-502.29202675,0.00019089,2]
[408439264,1773627041007,-287.37542386,0.00019089,2]
[408439265,1773627041017,-501.51798129,0.00019089,2]
[408439266,1773627041027,-500.66408558,0.00019089,2]
[408439267,1773627041036,-500.81403539,0.00019089,2]
[408439268,1773627041045,-3094.0,0.000191,5]
[408439269,1773627041055,-1300.0,0.000191,6]
[408439270,1773627041065,-910.85,0.000191,2]
[408439271,1773627041075,-418.0,0.00019106,2]
[408439272,1773627041085,-500.0,0.00019111,2]
[408439273,1773627041095,-500.0,0.00019111,2]
[408439274,1773627041106,-500.0,0.00019111,2]
[408439275,1773627041116,-507.39789229,0.00019111,2]
[408439276,1773627041126,-500.0,0.00019111,2]
[408439277,1773627041137,-516.93327662,0.00019111,2]
[408439278,1773627041146,-503.88173353,0.00019111,2]
[408439279,1773627041156,-502.29369662,0.00019117,2]
[408439280,1773627041165,-501.62065474,0.00019117,2]
[408439281,1773627041174,-500.0,0.00019121,2]
[408439282,1773627041184,-500.0,0.00019121,2]
[408439283,1773627041193,-603.58035157,0.00019121,2]
[408439284,1773627041203,-151.0,0.00019121,2]
[408439285,1773627041212,-151.0,0.00019121,2]
[408439286,1773627041221,-151.0,0.00019121,2]
[408439287,1773627041231,-500.94906589,0.00019125,2]
[408439288,1773627041240,-501.89822692,0.00019125,2]
[408439289,1773627041249,-232.331277,0.00019149,2]
[408439290,1773627041262,-232.331277,0.00019149,2]
[408439291,1773627041271,-232.331277,0.00019149,2]
[408439292,1773627041280,-232.331277,0.00019149,2]
[408439293,1773627041289,-151.0,0.00019149,2]
[408439294,1773627041300,-151.0,0.00019149,2]
[408439295,1773627041309,-151.0,0.00019149,2]
[408439296,1773627041319,-150.0,0.00019153,2]
[408439297,1773627041329,-157.79,0.00019154,2]
[408439298,1773627041339,-418.0,0.00019161,2]
[408439299,1773627041347,-3158.0,0.00019162,5]
[408439300,1773627041356,-869.13,0.00019163,2]
[408439301,1773627041365,-20265.01,0.00019178,2]
[408439302,1773627041374,-151.0,0.00019178,2]
[408439303,1773627041383,-151.0,0.00019178,2]
[408439304,1773627041391,-151.0,0.00019178,2]
[408439305,1773627041400,-151.0,0.00019178,2]
[408439306,1773627041408,-151.0,0.00019178,2]
[408439307,1773627041417,-151.0,0.00019178,2]
[408439308,1773627041426,-151.0,0.00019178,2]
[408439309,1773627041435,-151.0,0.00019178,2]
[408439310,1773627041444,-151.0,0.00019178,2]
[408439311,1773627041453,-151.0,0.00019178,2]
[408439312,1773627041462,-151.0,0.00019178,2]
[408439313,1773627041471,-151.0,0.00019178,2]
[408439314,1773627041480,-151.0,0.00019178,2]
[408439315,1773627041489,-151.0,0.00019178,2]
[408439316,1773627041498,-151.0,0.00019178,2]
[408439317,1773627041507,-151.0,0.00019178,2]
[408439318,1773627041516,-151.0,0.00019178,2]
[408439319,1773627041524,-151.0,0.00019178,2]
[408439320,1773627041533,-151.0,0.00019178,2]
[408439321,1773627041542,-151.0,0.00019178,2]
[408439322,1773627041551,-238.852544,0.00019178,2]
[408439323,1773627041560,-151.0,0.00019178,2]
[408439324,1773627041569,-151.0,0.00019178,2]
[408439325,1773627041578,-152.496036,0.00019178,2]
[408439326,1773627041588,-218.3794423,0.00019178,2]
[408439327,1773627041597,-2000.0,0.000192,2]
[408439328,1773627041606,-2700.0,0.000192,7]
[408439329,1773627041615,-151.0,0.000192,2]
[408439330,1773627041623,-151.0,0.000192,2]
[408439331,1773627041632,-418.0,0.00019215,2]
[408439332,1773627041641,-301.163015,0.00019222,2]
[408439333,1773627041650,-1841.0,0.00019222,2]
[408439334,1773627041659,-232.331277,0.00019232,2]
[408439335,1773627041668,-232.331277,0.00019232,2]
[408439336,1773627041677,-232.331277,0.00019232,2]
[408439337,1773627041687,-232.331283,0.00019232,2]
[408439338,1773627041697,-151.0,0.00019232,2]
[408439339,1773627041707,-151.0,0.00019232,2]
[408439340,1773627041716,-151.0,0.00019232,2]
[408439341,1773627041725,-3741.05159045,0.00019236,2]
[408439342,1773627041734,-166.66,0.00019249,2]
[408439343,1773627041743,-433.33296755,0.0001927,2]
[408439344,1773627041752,-151.0,0.00019276,2]
[408439345,1773627041761,-151.0,0.00019276,2]
[408439346,1773627041770,-151.0,0.00019276,2]
[408439347,1773627041779,-151.0,0.00019276,2]
[408439348,1773627041788,-151.0,0.00019276,2]
[408439349,1773627041797,-1003.73,0.00019276,2]
[408439350,1773627041806,-4000.0,0.000193,7]
[408439351,1773627041818,-274.2017935,0.00019319,2]
[408439352,1773627041829,-500.0,0.00019319,2]
[408439353,1773627041839,-428.33984905,0.00019319,2]
[408439354,1773627041849,-285.46371384,0.00019319,2]
[408439355,1773627041858,-179.50832953,0.00019319,2]
[408439356,1773627041867,-500.0,0.00019319,2]
[408439357,1773627041878,-16079.21303601,0.00019399,2]
[408439358,1773627041890,-5400.0,0.000194,7]
[408439359,1773627041901,-3741.05159045,0.00019457,2]
[408439360,1773627041917,-790.3,0.00019476,2]
[408439361,1773627041926,-16079.21303601,0.00019483,2]
[408439362,1773627041936,-16894.75284394,0.000195,2]
[408439363,1773627041946,-208.6805,0.000195,2]
[408439364,1773627041955,-6700.0,0.000195,7]
[408439365,1773627041965,-2000.0,0.00019513,2]
[408439366,1773627041974,-500.0,0.00019519,2]
[408439367,1773627041985,-155.0,0.00019553,14]
[408439368,1773627041995,-1597.57605454,0.00019559,2]
[408439369,1773627042005,-16079.21303601,0.00019566,2]
[408439370,1773627042015,-357.46358673,0.00019569,2]
[408439371,1773627042025,-3304.22240066,0.000196,2]
[408439372,1773627042035,-151.0,0.000196,2]
[408439373,1773627042048,-277.463232,0.000196,2]
[408439374,1773627042057,-1300.0,0.000196,7]
[408439375,1773627042067,-622.60038467,0.00019637,2]
[408439376,1773627042077,-1666.59236693,0.0001965,2]
[408439377,1773627042191,-335.38,0.0001965,2]
[408439378,1773627042216,-151.0,0.000186,2]
[408439379,1773627042225,-151.0,0.000192,2]
[408439380,1773627042234,-423.5,0.0001965,2]
[408439381,1773627043564,-151.0,0.00018086,2]
[408439382,1773627043574,-151.0,0.00018284,2]
[408439383,1773627043585,-2417.6858017,0.00018641,2]
[408439384,1773627043595,-151.0,0.00019121,2]
[408439385,1773627043605,-250.960714,0.000192,2]
[408439386,1773627043615,-9388.9511565,0.0001965,2]
[408439403,1773627046218,-4264.78951258,0.0001965,2]
[408439404,1773627046228,-150.10612572,0.00019659,5]
[408439405,1773627046237,-3741.05159045,0.00019679,2]
[408439406,1773627046247,-1181.79509502,0.000197,2]
[408439407,1773627046260,-1300.0,0.000197,7]
[408439408,1773627046268,-1597.57605453,0.0001973,2]
[408439409,1773627046277,-151.0,0.00019733,2]
[408439410,1773627046287,-12383.7516217,0.00019733,2]
[408439411,1773627046576,-3695.46141431,0.00019733,2]
[408439412,1773627046586,-150.14639415,0.00019773,2]
[408439414,1773627046595,-500.0,0.00019773,2]
[408439416,1773627046604,-500.0,0.00019773,2]
[408439418,1773627046613,-197.33136433,0.00019778,2]
[408439420,1773627046623,-168.0,0.00019792,2]
[408439422,1773627046632,-500.0,0.00019799,2]
[408439424,1773627046642,-500.0,0.00019799,2]
[408439426,1773627046652,-500.0,0.00019799,2]
[408439428,1773627046661,-500.0,0.00019799,2]
[408439430,1773627046671,-500.0,0.00019799,2]
[408439432,1773627046680,-267.83137557,0.00019799,2]
[408439434,1773627046689,-507.88785737,0.00019799,2]
[408439436,1773627046699,-4423.91889146,0.000198,2]
[408439447,1773628231297,-988.1,0.00014215,2]
[408439448,1773628231306,-500.0,0.00015288,2]
[408439449,1773628231315,-500.0,0.00015637,2]
[408439450,1773628231324,-191.80033306,0.00015942,2]
[408439451,1773628231334,-500.0,0.00016042,2]
[408439452,1773628231343,-500.0,0.00016042,2]
[408439453,1773628231360,-293.48059633,0.00016042,2]
[408439454,1773628231373,-166.66,0.00016361,2]
[408439455,1773628231383,-1200.0,0.00016446,2]
[408439456,1773628231393,-1488.38037308,0.00016447,2]
[408439457,1773628231407,-1011.61962692,0.00016447,2]
[408439458,1773628231417,-195.0,0.00016533,2]
[408439459,1773628231428,-2500.0,0.00016655,2]
[408439460,1773628231437,-2500.0,0.00016655,2]
[408439461,1773628231447,-166.66,0.00016705,2]
[408439462,1773628231457,-2000.0,0.00016746,2]
[408439463,1773628231467,-195.0,0.00016786,2]
[408439464,1773628231476,-195.0,0.00016786,2]
[408439465,1773628231487,-195.0,0.00016786,2]
[408439466,1773628231496,-9564.11,0.00016805,2]
[408439467,1773628231505,-2000.0,0.000169,2]
[408439468,1773628231515,-511.0,0.00017,2]
[408439469,1773628231524,-215.85,0.00017008,2]
[408439470,1773628231534,-418.01,0.00017015,2]
[408439471,1773628231544,-166.66,0.0001705,2]
[408439472,1773628231553,-4246.41,0.00017282,2]
[408439473,1773628231563,-326.69,0.00017345,2]
[408439474,1773628231573,-210.61,0.00017345,2]
[408439475,1773628231582,-2219.5,0.00017391,2]
[408439476,1773628231591,-166.66,0.00017394,2]
[408439477,1773628231600,-3909.47,0.00017478,2]
[408439478,1773628231610,-500.0,0.00017697,2]
[408439479,1773628231622,-402.69,0.00017714,2]
[408439481,1773628231632,-178.635,0.00017714,2]
[408439483,1773628231641,-2274.0,0.00017714,2]
[408439486,1773628231652,-166.66,0.00017739,2]
[408439489,1773628231662,-17667.2396,0.00017797,2]
[408439492,1773628231671,-801.10358753,0.00017808,2]
[408439494,1773628231681,-166.66,0.00017865,2]
[408439496,1773628231692,-1074.4892,0.00017986,2]
[408439498,1773628231702,-1000.0,0.00017986,2]
[408439500,1773628231711,-195.0,0.00017997,2]
[408439501,1773628231722,-2500.0,0.00017997,2]
[408439502,1773628231731,-1680.0,0.00018062,2]
[408439503,1773628231741,-166.66,0.00018083,2]
[408439504,1773628231751,-402.69,0.00018157,2]
[408439505,1773628231761,-166.66,0.00018455,2]
[408439506,1773628231770,-1208.84290085,0.00018573,2]
[408439507,1773628231782,-820.79344198,0.00018573,2]
[408439508,1773628231791,-402.69,0.000186,2]
[408439509,1773628231800,-218.53,0.0001862,2]
[408439510,1773628231810,-218.53,0.0001862,2]
[408439511,1773628231819,-218.53,0.0001862,2]
[408439512,1773628231829,-218.53,0.0001862,2]
[408439513,1773628231838,-218.53,0.0001862,2]
[408439514,1773628231847,-309.40321204,0.00018629,2]
[408439515,1773628231856,-500.0,0.00018629,2]
[408439516,1773628231866,-500.0,0.00018629,2]
[408439517,1773628231875,-500.0,0.00018629,2]
[408439518,1773628231884,-500.0,0.00018629,2]
[408439519,1773628231894,-500.0,0.00018629,2]
[408439520,1773628231903,-500.0,0.00018629,2]
[408439521,1773628231912,-500.0,0.00018629,2]
[408439522,1773628231921,-500.0,0.00018629,2]
[408439523,1773628231931,-500.0,0.00018629,2]
[408439524,1773628231940,-500.0,0.00018629,2]
[408439525,1773628231949,-500.0,0.00018629,2]
[408439526,1773628231959,-500.0,0.00018629,2]
[408439527,1773628231968,-500.0,0.00018629,2]
[408439528,1773628231977,-500.0,0.00018629,2]
[408439529,1773628231987,-500.0,0.00018629,2]
[408439530,1773628231996,-500.0,0.00018629,2]
[408439531,1773628232005,-500.0,0.00018629,2]
[408439532,1773628232015,-500.0,0.00018629,2]
[408439533,1773628232024,-500.0,0.00018629,2]
[408439534,1773628232032,-500.0,0.00018629,2]
[408439535,1773628232042,-500.0,0.00018629,2]
[408439536,1773628232051,-500.0,0.00018629,2]
[408439537,1773628232061,-500.0,0.00018629,2]
[408439538,1773628232071,-500.0,0.00018629,2]
[408439539,1773628232081,-500.0,0.00018629,2]
[408439540,1773628232092,-500.0,0.00018629,2]
[408439541,1773628232102,-500.0,0.00018629,2]
[408439542,1773628232114,-500.0,0.00018629,2]
[408439543,1773628232125,-500.0,0.00018629,2]
[408439544,1773628232134,-500.0,0.00018629,2]
[408439545,1773628232143,-500.0,0.00018629,2]
[408439546,1773628232154,-500.0,0.00018629,2]
[408439547,1773628232163,-500.0,0.00018629,2]
[408439548,1773628232174,-500.0,0.00018629,2]
[408439549,1773628232184,-500.0,0.00018629,2]
[408439550,1773628232195,-500.0,0.00018629,2]
[408439551,1773628232205,-484.16347079,0.00018629,2]
[408439552,1773628232214,-500.0,0.00018629,2]
[408439553,1773628232224,-500.0,0.00018629,2]
[408439554,1773628232233,-500.0,0.00018629,2]
[408439555,1773628232242,-500.0,0.00018629,2]
[408439556,1773628232251,-500.0,0.00018629,2]
[408439557,1773628232262,-250.0,0.00018629,2]
[408439558,1773628232270,-555.32706788,0.00018629,2]
[408439559,1773628232281,-225.56487856,0.00018629,2]
[408439560,1773628232292,-500.0,0.00018629,2]
[408439561,1773628232302,-500.0,0.00018629,2]
[408439562,1773628232313,-500.0,0.00018629,2]
[408439563,1773628232322,-500.0,0.00018629,2]
[408439564,1773628232332,-500.0,0.00018629,2]
[408439565,1773628232342,-500.0,0.00018629,2]
[408439566,1773628232351,-157580.19818994,0.0001863,2]
[408439567,1773628232364,-17056.20190934,0.0001863,2]
[408439569,1773628237392,-487.1150297,0.0001863,2]
[408439570,1773628237406,-1270.60232014,0.0001863,2]
[408439571,1773628237448,-178684.68499092,0.0001863,2]
[408439572,1773628237462,-1770.60448834,0.0001863,2]
[408439573,1773628237476,-1301.42232505,0.0001863,2]
[408439574,1773628237490,-2953.98043049,0.0001863,2]
[408439575,1773628237503,-3927.9239263,0.0001863,2]
[408439576,1773628237518,-3368.9264312,0.0001863,2]
[408439577,1773628237531,-4339.1699421,0.0001863,2]
[408439578,1773628237544,-316.58964852,0.0001863,2]
[408439579,1773628237561,-499.40535172,0.0001863,2]
[408439582,1773628239579,-750.0,0.0001863,2]
[408439585,1773628240059,-872.14,0.0001863,2]
[408439586,1773628240074,-392.82151481,0.0001863,2]
[408439587,1773628240112,-1015.96867818,0.0001863,2]
[408439588,1773628240167,-1655.35490122,0.0001863,2]
[408439600,1773628242445,-500.0,0.00018629,2]
[408439601,1773628242456,-309.74516329,0.00018629,2]
[408439608,1773628245284,-190.25483671,0.00018629,2]
[408439609,1773628245294,-7159.9478601,0.0001863,2]
[408439610,1773628245308,-6803.533306,0.0001863,2]
[408439611,1773628245652,-2579.46459033,0.0001863,2]
[408439620,1773628554876,6770.21,9.496e-05,2]
[408439621,1773628927264,170.5,9e-05,2]
[408439632,1773629431451,-199.62686483,0.00016612,2]
[408439633,1773629431466,-2500.0,0.00016662,2]
[408439634,1773629431476,-300.0,0.00016703,2]
[408439635,1773629431487,-1200.0,0.00016703,2]
[408439636,1773629431497,-2500.0,0.00016704,2]
[408439637,1773629431507,-2500.0,0.00016704,2]
[408439638,1773629431519,-2500.0,0.00016704,2]
[408439639,1773629431529,-166.81,0.00016712,2]
[408439640,1773629431540,-150.0,0.00016956,2]
[408439641,1773629431551,-3105.45,0.00016979,2]
[408439642,1773629431562,-511.0,0.00017,2]
[408439643,1773629431573,-157.79,0.00017037,2]
[408439644,1773629431584,-538.19,0.00017184,2]
[408439645,1773629431595,-200.0,0.00017234,2]
[408439646,1773629431606,-172.13816476,0.000174,2]
[408439647,1773629431616,-3252.01,0.00017421,2]
[408439648,1773629431627,-200.0,0.00017529,2]
[408439649,1773629431637,-578.5230225,0.00017529,2]
[408439650,1773629431649,-160.14,0.00017645,2]
[408439651,1773629431663,-234.55377187,0.00017808,2]
[408439652,1773629431675,-538.19,0.00018044,2]
[408439654,1773629431687,-172.68,0.00018206,2]
[408439656,1773629431699,-420.0,0.00018249,2]
[408439657,1773629431710,-2500.0,0.00018273,2]
[408439658,1773629431722,-500.0,0.00018285,2]
[408439660,1773629431733,-1179.38012226,0.00018338,2]
[408439661,1773629431745,-1359.9482635,0.00018338,2]
[408439662,1773629431756,-1354.0,0.0001834,2]
[408439663,1773629431768,-500.0,0.00018373,2]
[408439664,1773629431780,-534.29920634,0.00018373,2]
[408439665,1773629431791,-501.08575736,0.00018373,2]
[408439666,1773629431800,-500.0,0.00018373,2]
[408439667,1773629431810,-500.0,0.00018373,2]
[408439668,1773629431819,-500.0,0.00018373,2]
[408439669,1773629431829,-200.0,0.00018374,2]
[408439670,1773629431838,-500.0,0.00018374,2]
[408439671,1773629431847,-500.0,0.00018374,2]
[408439672,1773629431856,-500.0,0.00018374,2]
[408439673,1773629431866,-532.10249534,0.00018374,2]
[408439674,1773629432137,-151.0,0.00018374,2]
[408439675,1773629432151,-151.0,0.00018374,2]
[408439676,1773629432161,-528.30089606,0.00018374,2]
[408439677,1773629432171,-151.0,0.00018374,2]
[408439678,1773629432181,-151.0,0.00018374,2]
[408439679,1773629432190,-500.0,0.00018384,2]
[408439680,1773629432200,-373.41634708,0.00018384,2]
[408439681,1773629432209,-500.0,0.00018384,2]
[408439682,1773629432219,-500.0,0.00018384,2]
[408439683,1773629432229,-500.0,0.00018384,2]
[408439684,1773629432239,-264.23112202,0.00018384,2]
[408439685,1773629432248,-248.87662817,0.00018384,2]
[408439686,1773629432258,-421.3363307,0.00018384,2]
[408439687,1773629432267,-500.0,0.00018384,2]
[408439688,1773629432277,-483.55124567,0.00018384,2]
[408439689,1773629432287,-500.0,0.00018384,2]
[408439690,1773629432297,-500.0,0.00018384,2]
[408439691,1773629432306,-500.0,0.00018384,2]
[408439692,1773629432315,-500.0,0.00018384,2]
[408439693,1773629432325,-267.83137557,0.00018384,2]
[408439694,1773629432334,-500.0,0.00018384,2]
[408439695,1773629432343,-500.0,0.00018384,2]
[408439696,1773629432353,-66431.5710364,0.00018385,2]
[408439697,1773629432365,-19882.23691678,0.00018385,2]
[408439698,1773629432377,-811.49901553,0.00018385,2]
[408439699,1773629432391,-391.42594928,0.00018385,2]
[408439700,1773629432403,-308.29206342,0.00018385,2]
[408439701,1773629432414,-1305.38,0.00018385,2]
[408439702,1773629432428,-4749.99994,0.00018385,2]
[408439703,1773629432439,-315.31506907,0.00018385,2]
[408439704,1773629437604,-981.56,0.00018385,2]
[408439705,1773629437615,-19532.98686699,0.00018385,2]
[408439706,1773629437627,-367.0,0.00018385,2]
[408439707,1773629437658,-10311.18479111,0.00018385,2]
[408439708,1773629437670,-3015.00009,0.00018385,2]
[408439709,1773629437682,-67404.85692239,0.00018385,2]
[408439710,1773629437694,-2842.23787571,0.00018385,2]
[408439711,1773629437764,-14722.46616552,0.00018385,2]
[408439712,1773629437873,-603.22941727,0.00018385,2]
[408440086,1773629442638,-4810.27,0.00018385,2]
[408440087,1773629442849,-948.16123972,0.00018385,2]
[408440088,1773629442903,-12261.70932851,0.00018385,2]
[408440089,1773629442914,-398.67804307,0.00018385,2]
[408440105,1773629445481,-29287.37223159,0.00018385,2]
[408440106,1773629445493,-18130.54442829,0.00018385,2]
[408440107,1773629445504,-4313.4,0.00018385,2]
[408440108,1773629445855,-3822.23696665,0.00018385,2]
[408440114,1773630002320,10000.01,8e-05,2]
[408440115,1773630002346,7809.84154024,8e-05,2]
[408440118,1773630247927,4393.48941,7.945e-05,2]
[408440119,1773630495966,894.8322414,9.496e-05,2]
[408440132,1773630631651,-258.87161287,0.0001199,2]
[408440133,1773630631701,-2788.39775442,0.0001199,2]
[408440134,1773630631712,-223.72425755,0.00014095,2]
[408440135,1773630631722,-300.0,0.00016199,2]
[408440136,1773630631732,-1200.0,0.00016199,2]
[408440137,1773630631741,-5000.00859319,0.000162,5]
[408440138,1773630631750,-166.66,0.00016496,2]
[408440139,1773630631760,-494.3278,0.00016512,2]
[408440140,1773630631770,-822.27969617,0.00016655,2]